bitfinex-derivatives/quotes_ETHF0:USTF0_20260203
["timestamp","ask_amount","ask_price","bid_price","bid_amount"]
[1770143265382,1.36554657,2135.2,2133.5,4.16961032]
[1770143265581,0.23457,2134.0,2132.9,4.16961032]
[1770143265881,1.3362169,2133.6,2131.3,4.16885471]
[1770143266080,3.749,2133.5,2130.6,4.16885471]
[1770143266378,3.749,2133.4,2131.1,4.16885471]
[1770143266575,1.3362169,2133.3,2131.7,3.30709942]
[1770143266877,1.5709669,2132.4,2130.7,9.06664894]
[1770143267083,1.3362169,2132.9,2131.2,2.50983783]
[1770143267276,0.23458,2133.9,2132.2,2.50983783]
[1770143267482,1.3362169,2134.6,2133.1,6.67869254]
[1770143267680,0.23446,2135.0,2133.5,2.50983783]
[1770143267879,1.3362169,2135.5,2134.0,2.50983783]
[1770143268078,0.00529235,2135.5,2134.2,2.50983783]
[1770143268283,0.95564009,2137.0,2135.3,2.50983783]
[1770143268578,0.23416,2137.7,2135.9,2.50983783]
[1770143268780,0.23418,2137.6,2136.0,2.50983783]
[1770143268985,0.23416,2137.7,2135.6,5.56002658]
[1770143269177,0.23416,2137.7,2134.9,4.16885471]
[1770143269178,0.23432,2136.3,2134.9,4.16885471]
[1770143269377,0.00599881,2136.3,2134.9,0.00413149]
[1770143269583,0.24031881,2136.3,2134.9,0.00413149]
[1770143269786,0.00599881,2136.3,2135.1,4.16885471]
[1770143270185,0.86752605,2137.4,2135.3,3.30709942]
[1770143270481,0.23414,2137.9,2135.8,3.30709942]
[1770143270682,0.23414,2137.9,2135.7,4.16885471]
[1770143270683,0.85996923,2139.5,2137.3,3.30709942]
[1770143270883,1.09393923,2139.5,2137.7,4.16885471]
[1770143271086,0.85996923,2139.5,2137.9,2.40726051]
[1770143271285,0.85996923,2139.1,2137.9,3e-06]
[1770143271486,0.23402,2139.0,2137.9,3e-06]
[1770143271684,0.23405,2138.7,2137.9,3e-06]
[1770143271887,0.005404,2139.5,2137.9,2.40726351]
[1770143272182,0.23397,2139.4,2138.0,6.57611522]
[1770143272387,0.23397,2139.4,2138.1,2.40726051]
[1770143272884,0.005404,2139.5,2138.1,2.40726051]
[1770143272885,0.005404,2139.5,2138.3,2.40726051]
[1770143273478,0.234,2139.2,2138.3,2.40726051]
[1770143273780,0.234,2139.2,2138.5,2.40726051]
[1770143274185,0.2339,2140.1,2138.5,2.40726051]
[1770143274390,0.23391,2140.0,2138.7,2.4263691]
[1770143274580,1.74588364,2140.0,2138.4,40.8]
[1770143274785,0.01140281,2139.3,2137.9,3e-06]
[1770143274985,1.66450821,2139.8,2137.9,3e-06]
[1770143275190,0.23403,2138.9,2137.9,3e-06]
[1770143275686,0.01140281,2138.5,2137.9,3e-06]
[1770143275888,0.23406,2138.7,2137.9,3e-06]
[1770143276484,0.24546281,2138.7,2137.9,3e-06]
[1770143276684,0.01140281,2138.5,2137.9,3e-06]
[1770143276882,1.72843953,2139.0,2137.5,2.4263691]
[1770143277089,0.23414,2138.0,2136.7,2.4263691]
[1770143277285,0.23415,2137.8,2136.7,2.4263691]
[1770143277482,0.23416,2137.7,2136.7,2.4263691]
[1770143277885,0.01140281,2136.9,2135.3,12.54254862]
[1770143278088,0.23425,2136.9,2135.3,3.746]
[1770143278285,2.4016931,2137.4,2135.3,7.05309942]
[1770143278485,2.4016931,2137.5,2135.8,3.30709942]
[1770143278694,2.4016931,2137.5,2135.3,3.746]
[1770143278695,0.23423,2137.1,2135.3,3.746]
[1770143278991,0.23423,2137.1,2135.5,3.30709942]
[1770143279191,2.4016931,2137.6,2135.5,3.30709942]
[1770143279391,2.6358631,2137.6,2135.5,3.30709942]
[1770143279791,0.23417,2137.6,2136.1,2.4263691]
[1770143280588,0.01140281,2137.5,2136.1,2.4263691]
[1770143280788,0.23417,2137.6,2136.1,2.4263691]
[1770143280988,0.23408,2138.5,2136.9,3.30709942]
[1770143281189,3.746,2139.8,2137.0,2.4263691]
[1770143281389,0.234,2139.2,2137.5,2.4263691]
[1770143281593,2.6356031,2140.0,2138.0,2.4263691]
[1770143281787,2.4016931,2140.5,2138.5,2.4263691]
[1770143282092,2.80157489,2141.7,2140.1,2.4263691]
[1770143282289,3.03530489,2141.7,2140.1,2.4263691]
[1770143282485,0.23363,2142.6,2140.6,2.4263691]
[1770143282691,0.23364,2142.5,2141.0,3.30709942]
[1770143282892,2.4016931,2143.2,2141.1,2.4263691]
[1770143283197,0.00423815,2143.2,2141.2,2.4263691]
[1770143283495,0.00423815,2143.2,2141.1,3.31193368]
[1770143283496,0.00423815,2143.2,2141.7,2.4263691]
[1770143283691,0.00423815,2143.2,2141.9,2.4263691]
[1770143283894,0.23366,2142.3,2141.2,3.745]
[1770143284094,0.00423815,2143.2,2141.5,3.30709942]
[1770143284389,0.01140281,2143.0,2141.6,40.8]
[1770143284595,0.23367,2142.2,2141.1,0.00483426]
[1770143284791,2.40593125,2143.2,2141.1,0.00483426]
[1770143285093,0.2337,2142.0,2141.1,0.00483426]
[1770143285398,0.23378,2141.2,2139.4,3.744]
[1770143285593,0.23368,2142.1,2140.0,3.30709942]
[1770143285993,2.4016931,2142.5,2140.1,2.4263691]
[1770143286190,0.00523551,2142.5,2140.6,2.4263691]
[1770143286393,0.23369,2142.0,2140.6,2.4263691]
[1770143286894,2.4016931,2142.4,2140.7,2.4263691]
[1770143287090,12.46137273,2144.0,2141.7,2.4263691]
[1770143287394,12.46137273,2144.0,2141.6,3.30709942]
[1770143287395,2.4016931,2143.9,2142.2,2.4263691]
[1770143287592,2.4016931,2143.2,2141.7,2.4263691]
[1770143287795,0.23363,2142.6,2140.7,2.4263691]
[1770143287989,2.6353231,2142.6,2140.7,2.4263691]
[1770143288196,0.23364,2142.5,2140.7,2.42984416]
[1770143288395,0.00529764,2142.6,2140.9,2.4263691]
[1770143288591,0.23374,2141.6,2139.8,3.30709942]
[1770143288795,0.23368,2142.1,2140.3,3.30709942]
[1770143289198,0.01140281,2141.9,2139.8,3.30709942]
[1770143289394,2.4016931,2142.2,2139.5,44.542]
[1770143289590,0.2338,2141.1,2139.5,3.742]
[1770143289801,0.2338,2141.1,2139.5,3.74804838]
[1770143289802,0.23757652,2141.1,2139.5,3.74804838]
[1770143290096,0.01140281,2141.0,2139.5,44.54804838]
[1770143290595,0.00377652,2141.1,2139.6,2.4263691]
[1770143290898,0.01140281,2140.6,2139.5,0.00604838]
[1770143291102,0.01140281,2140.2,2139.5,0.00604838]
[1770143291600,0.00377652,2141.1,2139.5,2.43241748]
[1770143292197,0.2338,2141.0,2139.5,2.43241748]
[1770143292401,2.40546962,2141.1,2139.5,0.00604838]
[1770143292601,0.23388,2140.4,2139.5,0.00604838]
[1770143292799,0.23756652,2141.1,2139.5,2.43241748]
[1770143294295,0.23385,2140.6,2139.5,2.43241748]
[1770143294498,0.23387,2140.4,2139.5,0.00604838]
[1770143294704,2.4016931,2140.8,2139.1,2.4263691]
[1770143295001,0.2338,2141.0,2139.1,2.4263691]
[1770143295302,0.00377652,2141.1,2139.6,2.4263691]
[1770143295497,0.00377652,2141.1,2138.4,6.46317368]
[1770143295498,0.08132352,2141.9,2138.4,2.72217368]
[1770143295698,1.65639088,2140.8,2138.5,5.38723684]
[1770143295901,0.23395,2139.7,2137.5,3.30709942]
[1770143296198,0.23389,2140.2,2138.1,3.30709942]
[1770143296405,0.2339,2140.1,2138.3,3.30709942]
[1770143296905,0.00400854,2140.2,2138.1,3.7445906]
[1770143297108,0.23395,2139.7,2138.1,3.7445906]
[1770143297404,0.00400854,2140.2,2138.7,3.30709942]
[1770143297606,0.00400854,2140.2,2138.8,2.4263691]
[1770143298501,0.00400854,2140.2,2139.3,2.4263691]
[1770143298703,0.23382,2140.8,2139.3,2.4263691]
[1770143299408,0.23375,2141.5,2139.8,2.4263691]
[1770143299607,0.23375,2141.5,2140.3,2.4263691]
[1770143299608,0.00590769,2141.5,2140.3,2.4263691]
[1770143300607,0.23377,2141.4,2140.3,2.4263691]
[1770143300908,0.23377,2141.3,2140.3,2.4263691]
[1770143301802,0.23381,2140.9,2139.8,0.004261]
[1770143302204,0.23965769,2141.5,2139.9,40.8]
[1770143302407,0.23965769,2141.5,2139.9,44.10709942]
[1770143302807,0.23378,2141.3,2139.9,40.8]
[1770143303006,0.23378,2141.2,2139.8,0.004261]
[1770143303607,0.23378,2141.2,2139.8,40.804261]
[1770143303809,0.00590769,2141.5,2140.0,2.41001097]
[1770143305208,0.23377,2141.4,2140.0,2.41001097]
[1770143305707,1.90369893,2141.5,2140.0,2.41001097]
[1770143306405,0.23965769,2141.5,2140.0,2.41001097]
[1770143306607,1.91368604,2141.5,2140.0,2.41001097]
[1770143306906,0.00590769,2141.5,2140.0,2.41001097]
[1770143307403,1.91368604,2142.3,2140.5,2.41001097]
[1770143307603,0.23375,2141.5,2140.5,2.41001097]
[1770143307804,1.91368604,2142.3,2140.5,2.41001097]
[1770143308009,0.23369,2142.0,2140.5,2.41001097]
[1770143308205,0.23362,2142.7,2140.8,2.41001097]
[1770143308404,1.93350449,2142.8,2140.9,2.41001097]
[1770143308599,0.23365,2142.4,2140.9,2.41001097]
[1770143308800,1.93350449,2142.8,2140.9,2.41001097]
[1770143309001,0.00523823,2142.8,2141.3,2.41001097]
[1770143309307,0.23362,2142.7,2141.4,2.41001097]
[1770143309606,0.23362,2142.7,2141.5,2.41001097]
[1770143310409,0.23363,2142.6,2141.5,2.41001097]
[1770143310610,0.00523823,2142.8,2141.5,2.41001097]
[1770143310810,0.00523823,2142.8,2141.6,2.41001097]
[1770143310811,0.23883823,2142.8,2141.6,2.41001097]
[1770143311513,0.23353,2143.5,2141.9,2.41001097]
[1770143311706,0.23354,2143.4,2142.3,2.41001097]
[1770143311901,3.739,2143.9,2142.3,2.41001097]
[1770143311902,0.23357,2143.2,2142.3,2.41001097]
[1770143312103,3.739,2143.9,2142.0,40.8]
[1770143312308,0.23358,2143.1,2142.0,2.41001097]
[1770143312510,0.23727419,2143.1,2142.0,2.41001097]
[1770143312704,0.00369419,2143.1,2142.0,1.91881097]
[1770143312913,0.23364,2142.5,2141.1,4.08133706]
[1770143313115,0.23364,2142.5,2141.1,3.30709942]
[1770143313411,2.41704797,2143.0,2141.4,40.32915]
[1770143313610,0.23368,2142.1,2141.3,0.00376298]
[1770143313811,0.23362,2142.7,2141.3,0.00376298]
[1770143314019,0.23362,2142.7,2141.4,2.76503775]
[1770143314312,2.41704797,2143.0,2141.4,7.03041409]
[1770143314514,0.23365,2142.4,2141.3,40.80376298]
[1770143314715,0.23364,2142.5,2141.3,0.00376298]
[1770143314911,0.23365,2142.4,2141.4,2.41001097]
[1770143315211,0.23369,2142.0,2141.3,0.00376298]
[1770143315510,0.23363,2142.6,2141.4,2.76503775]
[1770143315710,0.23362,2142.7,2141.6,2.76503775]
[1770143315910,0.23362,2142.7,2141.7,2.76503775]
[1770143316108,0.23362,2142.7,2141.3,2.76880073]
[1770143316312,0.23361,2142.8,2141.6,2.76503775]
[1770143316610,0.00369419,2143.1,2141.7,43.56503775]
[1770143317113,0.23364,2142.5,2141.7,2.41001097]
[1770143318314,0.00369419,2143.1,2141.7,2.41001097]
[1770143318519,0.2336,2142.8,2141.8,2.41001097]
[1770143318918,0.23365,2142.4,2141.8,2.41001097]
[1770143319317,0.22614444,2142.4,2141.8,2.41001097]
[1770143319518,0.23366,2142.3,2141.8,1.93212097]
[1770143319712,2.42074216,2143.1,2141.3,0.00376298]
[1770143319713,0.23367,2142.2,2141.3,0.00376298]
[1770143319914,2.41704797,2142.7,2141.3,0.00376298]
[1770143320516,0.00369419,2143.1,2140.4,2.76503775]
[1770143320517,2.41704797,2142.2,2140.4,2.76503775]
[1770143320717,2.41704797,2141.4,2139.9,2.76503775]
[1770143320923,0.2339,2140.1,2139.6,2.76503775]
[1770143321221,0.2339,2140.1,2139.3,2.76503775]
[1770143321525,0.23392,2140.0,2139.3,0.00334067]
[1770143321923,0.00343318,2140.1,2139.3,0.00334067]
[1770143322117,0.00343318,2140.1,2139.3,2.41335164]
[1770143323021,0.00343318,2140.1,2139.3,0.00334067]
[1770143323022,0.23733318,2140.1,2139.3,0.00334067]
[1770143323219,0.23386,2140.5,2139.3,2.41335164]
[1770143323420,2.41704797,2141.0,2139.3,6.97735164]
[1770143323627,2.65084797,2141.0,2139.4,2.41001097]
[1770143324125,0.23381,2140.9,2139.4,2.41001097]
[1770143324325,2.42295714,2140.9,2139.4,2.41001097]
[1770143324524,0.00590917,2140.9,2139.4,2.41001097]
[1770143324723,2.42295714,2140.9,2139.4,2.41001097]
[1770143324925,0.23389,2140.2,2139.4,2.41001097]
[1770143325226,0.23393,2139.8,2139.3,0.00334067]
[1770143325421,0.23396,2139.6,2138.4,2.41001097]
[1770143325622,0.23401,2139.2,2137.9,5.53775711]
[1770143325824,2.41704797,2140.0,2137.7,0.23416]
[1770143326022,0.23374,2141.6,2138.3,5.53775711]
[1770143326023,0.23388,2140.3,2138.3,5.53775711]
[1770143326327,2.41704797,2140.4,2138.6,5.53775711]
[1770143326523,0.23391,2140.0,2138.6,5.5421434]
[1770143326921,0.23391,2140.0,2138.6,0.00438629]
[1770143327226,0.23396,2139.6,2138.6,0.00438629]
[1770143327416,0.23397,2139.5,2138.6,0.00438629]
[1770143327617,0.23399,2139.3,2138.6,0.00438629]
[1770143328725,0.23391,2140.0,2138.6,2.41439726]
[1770143331224,2.7688944,2140.0,2138.6,2.41439726]
[1770143331427,0.23393,2139.9,2138.6,2.41439726]
[1770143331831,2.7689144,2139.8,2138.6,2.41439726]
[1770143332429,2.7689144,2139.8,2138.6,0.00438629]
[1770143332727,2.7689144,2139.8,2138.6,2.52343308]
[1770143334630,2.48701623,2140.2,2138.6,2.52343308]
[1770143335030,2.48701623,2140.2,2138.8,2.39303573]
[1770143335925,0.00375848,2140.4,2139.1,2.39303573]
[1770143337431,0.00375848,2140.4,2139.3,2.39303573]
[1770143337627,2.72464471,2140.4,2138.9,2.39303573]
[1770143340527,0.00375848,2140.4,2138.9,2.39303573]
[1770143340728,2.49077471,2140.4,2138.9,2.39303573]
[1770143341033,2.48701623,2140.2,2138.6,0.00438629]
[1770143341230,0.00375848,2140.4,2138.6,0.00438629]
[1770143341231,2.48701623,2139.6,2138.6,0.00438629]
[1770143341534,2.72102623,2139.1,2138.1,2.39303573]
[1770143341735,2.48701623,2139.5,2138.1,2.39303573]
[1770143342141,0.23395,2139.7,2138.1,2.39303573]
[1770143342332,0.23395,2139.7,2138.0,4.586]
[1770143342333,2.48701623,2139.9,2138.3,2.39303573]
[1770143342634,0.00375848,2140.4,2138.5,7.93079284]
[1770143342830,0.00375848,2140.4,2139.1,2.39303573]
[1770143343029,2.48701623,2141.1,2139.4,2.39303573]
[1770143343333,4.12575298,2141.9,2138.3,0.00595093]
[1770143343334,2.48701623,2139.9,2138.3,0.00595093]
[1770143343633,2.48701623,2139.5,2138.3,0.00595093]
[1770143344036,2.4924235,2139.5,2138.3,0.00595093]
[1770143344232,2.72099623,2139.4,2138.3,0.00595093]
[1770143344436,0.00540727,2139.5,2138.3,2.39898666]
[1770143344940,2.4924235,2139.5,2138.3,2.39898666]
[1770143345340,2.72101623,2139.2,2138.3,0.00595093]
[1770143345736,2.4924235,2139.5,2138.3,0.00595093]
[1770143346032,0.00540727,2139.5,2138.3,2.39898666]
[1770143346335,0.00540727,2139.5,2138.4,40.8]
[1770143346538,0.00540727,2139.5,2138.5,2.39303573]
[1770143346738,2.58484885,2141.5,2138.4,40.8]
[1770143346739,0.23383,2140.8,2139.1,2.39303573]
[1770143346938,2.72084623,2140.7,2139.3,2.39303573]
[1770143347241,2.48701623,2140.6,2139.3,2.39303573]
[1770143347640,0.2339,2140.2,2139.3,2.39303573]
[1770143348036,0.00581935,2140.6,2139.6,2.39303573]
[1770143348340,2.48701623,2141.0,2139.7,2.39303573]
[1770143348542,2.48701623,2140.4,2139.3,2.39303573]
[1770143349036,2.48701623,2140.0,2138.9,2.39303573]
[1770143349238,2.72093623,2139.9,2138.6,5.53775711]
[1770143349540,0.00497067,2140.0,2138.9,7.93079284]
[1770143349733,2.48701623,2139.9,2138.5,48.73079284]
[1770143349936,0.23394,2139.8,2138.5,7.93079284]
[1770143350232,0.23394,2139.8,2138.6,7.93079284]
[1770143350438,2.48701623,2139.9,2138.8,5.53775711]
[1770143350638,2.48701623,2139.9,2138.7,5.53775711]
[1770143350836,2.48701623,2139.3,2138.3,0.00595093]
[1770143351037,2.72103623,2139.1,2138.3,0.00595093]
[1770143351936,2.48701623,2139.6,2138.3,0.00595093]
[1770143352132,2.72096623,2139.6,2138.3,0.00595093]
[1770143352736,2.48701623,2139.6,2138.3,2.39898666]
[1770143352938,2.7258969,2140.0,2138.6,6.57902872]
[1770143353138,2.7258969,2140.0,2138.6,2.39303573]
[1770143353337,2.7258969,2140.0,2138.6,6.57902872]
[1770143353740,2.7258969,2140.0,2138.7,2.39303573]
[1770143354142,0.00497067,2140.0,2138.7,2.39303573]
[1770143354344,0.00306306,2140.0,2139.2,2.39303573]
[1770143354538,0.00306306,2140.0,2139.3,2.39303573]
[1770143354740,2.48701623,2141.0,2139.7,2.39303573]
[1770143354942,2.72075623,2141.6,2139.9,6.57902872]
[1770143355346,2.48701623,2140.9,2139.8,2.39303573]
[1770143355547,0.23393,2139.8,2139.3,1.08253159]
[1770143355741,0.23806383,2139.8,2139.3,0.00367361]
[1770143355947,0.23394,2139.7,2138.2,5.53775711]
[1770143356147,0.23398,2139.4,2138.2,1.08253159]
[1770143356342,0.23403,2138.9,2137.6,5.53775711]
[1770143356645,1.12201301,2139.3,2137.3,0.91533975]
[1770143356845,1.12201301,2139.3,2135.9,9.53293078]
[1770143356846,0.23419,2137.4,2135.9,9.53293078]
[1770143357039,0.2344,2135.5,2133.3,4.582]
[1770143357342,0.23433,2136.2,2133.4,46.80302049]
[1770143357644,7.91726728,2136.1,2133.7,2.8350714]
[1770143357948,7.91726728,2136.0,2133.7,2.84064377]
[1770143358139,5.33241843,2136.0,2134.4,2.6004714]
[1770143358340,1e-08,2136.1,2135.1,2.6004714]
[1770143358542,2.81908885,2137.0,2135.5,2.6004714]
[1770143358747,2.58484885,2136.6,2134.4,2.6004714]
[1770143358948,2.81918885,2136.1,2134.5,2.6004714]
[1770143359148,0.2344,2135.6,2134.3,46.80302048]
[1770143359347,2.81924885,2135.6,2134.3,46.80302048]
[1770143359549,0.2344,2135.6,2134.3,49.40349188]
[1770143359748,0.23929194,2135.6,2134.4,2.6004714]
[1770143359944,0.23929194,2135.6,2134.5,2.6004714]
[1770143360147,5.45763464,2135.5,2134.3,46.80879613]
[1770143360346,0.23441,2135.5,2134.5,2.6004714]
[1770143360648,0.00489194,2135.6,2134.4,16.65357703]
[1770143360649,0.23444,2135.2,2134.4,16.65357703]
[1770143360852,0.23444,2135.2,2134.3,0.00121405]
[1770143361046,2.62145699,2135.2,2134.3,0.00121405]
[1770143361346,0.23452,2134.5,2132.7,3.743]
[1770143361546,0.23452,2134.5,2132.8,46.80302048]
[1770143361751,0.23452,2134.5,2133.3,16.65357703]
[1770143362049,2.38701699,2134.8,2133.4,16.65357703]
[1770143362255,2.38701699,2134.8,2133.4,0.00500881]
[1770143362552,2.38701699,2135.4,2133.6,2.50887406]
[1770143362749,2.38701699,2135.4,2133.8,2.50887406]
[1770143362949,0.23441,2135.5,2134.1,2.50887406]
[1770143363155,0.00489194,2135.6,2134.4,2.50887406]
[1770143363358,2.62134699,2136.2,2134.7,2.50887406]
[1770143363551,0.23434,2136.1,2134.7,2.50887406]
[1770143363753,0.23434,2136.1,2134.9,2.50887406]
[1770143363963,0.23434,2136.1,2133.9,3.745]
[1770143363964,0.23434,2136.1,2135.0,19.16245109]
[1770143364157,2.38701699,2136.6,2135.0,2.50887406]
[1770143364362,0.00567528,2136.6,2135.9,16.65357703]
[1770143364660,0.00567528,2136.6,2135.5,2.50887406]
[1770143364855,0.00567528,2136.6,2135.9,16.65357703]
[1770143365053,0.23418,2137.5,2136.2,2.50887406]
[1770143365256,2.38701699,2137.5,2135.8,2.50887406]
[1770143365556,0.23427,2136.7,2135.8,2.50887406]
[1770143365864,0.23427,2136.7,2135.9,46.80302048]
[1770143366063,0.23427,2136.7,2135.4,2.50887406]
[1770143366360,0.24014161,2136.7,2135.7,23.0582615]
[1770143366561,0.24014161,2136.7,2135.7,6.40468447]
[1770143366756,5.42286171,2138.0,2135.2,44.545]
[1770143366757,6.66413519,2138.2,2136.0,6.40468447]
[1770143367061,6.66413519,2138.2,2135.5,6.40468447]
[1770143367062,0.23424,2137.0,2135.5,6.40468447]
[1770143367465,6.66413519,2137.5,2135.8,6.40468447]
[1770143367466,0.23426,2136.9,2135.8,6.40468447]
[1770143367861,6.66871481,2136.9,2135.9,46.80302048]
[1770143368059,0.23429,2136.6,2135.5,6.40468447]
[1770143368266,0.00457962,2136.9,2135.8,6.40468447]
[1770143368466,0.00457962,2136.9,2135.9,16.65357703]
[1770143368666,0.00457962,2136.9,2136.1,16.65357703]
[1770143368867,0.00457962,2136.9,2136.2,16.65357703]
[1770143369362,0.00457962,2136.9,2136.3,16.65357703]
[1770143369660,0.23429,2136.5,2135.5,6.40468447]
[1770143369866,0.23429,2136.5,2136.1,6.40468447]
[1770143370060,0.00457962,2136.9,2136.1,6.40468447]
[1770143370266,0.00457962,2136.9,2136.3,23.0582615]
[1770143370566,0.00457962,2136.9,2136.3,6.40468447]
[1770143370869,0.23423,2137.1,2136.6,16.16515703]
[1770143371064,0.23423,2137.1,2136.5,6.40468447]
[1770143371564,0.23423,2137.1,2136.6,39.31190891]
[1770143371765,0.23423,2137.1,2136.6,38.78596453]
[1770143371962,0.23761935,2137.1,2136.6,38.79153405]
[1770143372163,0.23761935,2137.1,2136.6,38.32279405]
[1770143372363,4.25717344,2138.2,2136.8,16.16515703]
[1770143372564,0.23418,2137.5,2136.6,38.32279405]
[1770143372968,4.25717344,2138.2,2136.6,38.32279405]
[1770143373166,4.25717344,2138.0,2136.6,0.00556952]
[1770143373364,0.23429,2136.5,2135.2,44.545]
[1770143373565,4.25160392,2137.3,2133.5,3.42517482]
[1770143373764,4.76186392,2136.6,2133.6,41.56767453]
[1770143373964,0.23436,2135.9,2134.0,0.23456]
[1770143374166,0.23436,2135.9,2133.7,8.424]
[1770143374167,0.2343,2136.5,2134.6,14.92062703]
[1770143374467,0.00493076,2136.5,2134.7,4.678]
[1770143374768,0.23434,2136.1,2134.8,14.92062703]
[1770143374968,0.23436,2135.9,2134.7,42.49967453]
[1770143375467,0.23436,2135.9,2135.2,14.92062703]
[1770143375667,0.23431,2136.4,2135.4,6.40468447]
[1770143376173,0.23432,2136.3,2135.6,14.92062703]
[1770143376372,0.23432,2136.3,2135.6,6.40468447]
[1770143376567,0.23432,2136.3,2135.7,14.92062703]
[1770143376766,0.23432,2136.3,2135.7,52.74230156]
[1770143376963,0.23435,2136.0,2135.1,6.40468447]
[1770143377370,0.00493076,2136.5,2135.3,6.93696489]
[1770143378271,0.23435,2136.0,2135.3,6.93696489]
[1770143378669,0.00493076,2136.5,2135.4,36.84854453]
[1770143378874,0.23442,2135.4,2134.8,36.84854453]
[1770143379069,3.04549817,2136.2,2134.8,36.36416453]
[1770143379273,0.23445,2135.1,2133.8,4.699]
[1770143379471,0.23439,2135.6,2133.9,35.88429453]
[1770143379665,2.58484885,2136.1,2134.1,10.18125698]
[1770143379865,0.2344,2135.5,2134.0,10.18125698]
[1770143380072,5.35278638,2136.0,2134.0,10.18125698]
[1770143380073,0.23442,2135.4,2134.0,10.18125698]
[1770143380271,0.23442,2135.4,2134.1,46.06555151]
[1770143380567,0.23443,2135.3,2134.4,10.18125698]
[1770143380770,0.23444,2135.2,2134.5,6.69757215]
[1770143381167,0.23441,2135.4,2134.9,16.87882913]
[1770143381369,0.23441,2135.4,2134.9,6.69757215]
[1770143381569,0.23441,2135.4,2135.0,46.06555151]
[1770143381770,0.23441,2135.4,2135.1,6.60323327]
[1770143381978,0.23441,2135.4,2135.1,16.78449025]
[1770143382167,0.23441,2135.4,2135.2,6.60323327]
[1770143382371,0.23438,2135.8,2135.3,16.02423025]
[1770143382574,0.23438,2135.8,2135.4,6.13022327]
[1770143382772,0.23438,2135.7,2135.2,35.88429453]
[1770143382974,2.58484885,2136.3,2135.3,9.42099698]
[1770143383173,0.23435,2136.1,2135.5,4.0545371]
[1770143383373,0.23435,2136.1,2135.7,4.0545371]
[1770143383573,0.00493076,2136.5,2135.8,39.93883163]
[1770143383774,0.23435,2136.1,2135.6,39.93883163]
[1770143383973,0.23435,2136.1,2135.6,35.88429453]
[1770143384175,0.23435,2136.1,2135.8,4.0545371]
[1770143384374,0.23434,2136.1,2135.6,35.88429453]
[1770143384675,0.23435,2136.0,2135.6,35.40094453]
[1770143384867,0.23435,2136.0,2135.6,41.805629]
[1770143385068,0.23435,2136.0,2135.6,35.40094453]
[1770143385569,0.23435,2136.0,2134.5,3.30379497]
[1770143385570,2.58484885,2135.8,2134.4,6.93696489]
[1770143385773,0.23448,2134.8,2134.0,6.93696489]
[1770143385972,0.23449,2134.7,2134.0,6.93696489]
[1770143386278,2.58723092,2134.8,2134.2,6.82658624]
[1770143386473,0.00402315,2134.8,2134.2,6.83091767]
[1770143386776,0.23447,2134.9,2134.4,6.31387466]
[1770143386977,2.82170092,2134.9,2134.4,6.31387466]
[1770143387172,2.82170092,2134.9,2134.4,37.52194187]
[1770143387372,2.82170092,2134.9,2134.4,32.22527721]
[1770143387578,2.82633745,2134.9,2134.4,32.22527721]
[1770143387878,2.58723092,2135.2,2134.4,32.22527721]
[1770143388075,38.80846387,2135.3,2134.4,32.22527721]
[1770143388076,2.58723092,2135.3,2134.4,32.22527721]
[1770143388272,0.23445,2135.1,2134.4,32.22527721]
[1770143388874,0.24027904,2135.1,2134.4,32.22527721]
[1770143389471,14.86590567,2135.4,2134.5,6.40468447]
[1770143389673,0.23436,2135.9,2134.5,3.30379497]
[1770143389876,1.2122414,2136.4,2134.6,35.97327721]
[1770143390070,1.2122414,2136.4,2134.7,4.479]
[1770143390271,22.72838313,2137.9,2134.7,4.479]
[1770143390272,6.93696489,2136.9,2135.0,3.30379497]
[1770143390577,6.94089479,2136.9,2135.0,3.30379497]
[1770143390772,0.23429,2136.6,2135.1,32.22527721]
[1770143391272,6.94089479,2136.9,2135.1,32.22527721]
[1770143391472,0.23432,2136.3,2135.1,32.22527721]
[1770143391672,0.23433,2136.2,2135.1,32.22527721]
[1770143391879,0.23427,2136.7,2135.1,32.22527721]
[1770143392478,0.0039299,2136.9,2135.2,0.23443]
[1770143392678,0.2381799,2136.9,2135.2,0.23443]
[1770143393177,3.748,2137.9,2135.2,0.23443]
[1770143393178,0.23414,2138.0,2136.7,3.30379497]
[1770143393479,0.23414,2138.0,2136.8,4.832]
[1770143393680,0.23417,2137.6,2136.8,32.22527721]
[1770143393878,9.83009981,2138.9,2136.8,32.22527721]
[1770143393879,7.17362486,2137.5,2136.8,32.22527721]
[1770143394080,7.17898025,2137.5,2136.8,32.23110413]
[1770143394278,4.684,2137.3,2136.8,32.23110413]
[1770143394778,4.684,2136.9,2136.8,0.00582692]
[1770143394979,4.684,2136.9,2136.4,4.83]
[1770143394980,4.684,2137.0,2136.4,4.83]
[1770143395175,4.684,2137.0,2136.5,31.26674012]
[1770143395176,11.62344486,2137.0,2136.5,31.26674012]
[1770143395380,0.23421,2137.3,2135.9,4.843]
[1770143395680,0.00535539,2137.5,2135.9,4.843]
[1770143395876,0.00535539,2137.5,2136.0,31.26674012]
[1770143396078,6.94480025,2137.5,2136.0,31.26674012]
[1770143396283,7.17365486,2137.3,2136.0,31.26674012]
[1770143396485,6.93944486,2137.2,2136.0,31.26674012]
[1770143396781,4.684,2137.0,2136.0,31.26674012]
[1770143397084,11.62344486,2137.1,2136.0,31.26674012]
[1770143397282,6.93944486,2136.9,2136.0,31.26674012]
[1770143397481,6.93944486,2137.3,2136.0,31.26674012]
[1770143398578,7.17367486,2137.1,2136.0,31.26674012]
[1770143398975,4.684,2137.0,2136.0,31.26674012]
[1770143399183,7.17367486,2137.1,2136.0,31.26674012]
[1770143399380,6.93944486,2137.1,2136.0,31.26674012]
[1770143399585,0.00535539,2137.5,2136.1,3.30379497]
[1770143399785,0.00535539,2137.5,2136.0,31.26674012]
[1770143400177,6.94480025,2137.5,2136.1,40.8]
[1770143400379,6.93944486,2136.7,2136.0,30.73145788]
[1770143400682,6.93944486,2137.3,2136.0,30.73145788]
[1770143400982,0.23424,2137.0,2136.1,4.867]
[1770143401180,4.684,2136.8,2136.0,30.73145788]
[1770143401383,4.684,2136.6,2136.0,30.73145788]
[1770143401681,11.62344486,2136.4,2136.0,30.24084788]
[1770143401984,0.23436,2135.9,2135.0,6.93944486]
[1770143402185,5.17446184,2136.8,2135.0,6.93944486]
[1770143402385,4.79537608,2136.7,2135.2,6.93944486]
[1770143402580,5.17446184,2137.6,2135.5,6.93944486]
[1770143402883,0.23424,2137.0,2136.4,6.93944486]
[1770143403080,4.56278753,2137.5,2135.5,0.00481882]
[1770143403081,4.56141328,2136.9,2135.5,0.00481882]
[1770143403279,0.23433,2136.2,2135.5,0.00481882]
[1770143403484,0.23434,2136.1,2135.5,8.82e-06]